bitfinex/quotes_ETHUSD_20250222
["timestamp","ask_amount","ask_price","bid_price","bid_amount"]
[1740223690732,2.43363789,2742.2,2742.1,0.10541145]
[1740223690885,2.43363789,2742.2,2741.6,9.01741]
[1740223691084,2.43363789,2742.2,2741.7,0.10541145]
[1740223691528,2.43363789,2742.2,2741.7,3.75276145]
[1740223692127,2.43363789,2742.2,2741.8,3.64721]
[1740223692700,2.43363789,2742.2,2741.9,0.10541145]
[1740223692701,0.7699,2742.2,2741.9,0.10541145]
[1740223694199,0.7699,2742.2,2741.7,3.64729]
[1740223694417,0.7699,2742.2,2742.0,0.10563982]
[1740223694733,0.7699,2742.2,2742.1,0.10563982]
[1740223695097,0.7699,2742.2,2741.7,4.549019]
[1740223695291,3.64714,2741.9,2741.3,9.0178]
[1740223695603,0.7699,2741.8,2741.4,3.75328982]
[1740223695804,7.07708229,2742.2,2741.6,3.64742]
[1740223696119,0.7699,2742.3,2742.0,3.64697]
[1740223696315,1.48992623,2742.3,2742.0,3.64697]
[1740223696496,0.7699,2742.6,2742.3,3.64656]
[1740223696690,7.45,2742.7,2742.6,3.64617]
[1740223696933,7.45,2742.7,2742.6,3.75199472]
[1740223697689,7.45,2742.7,2742.6,4.49183419]
[1740223698788,0.7699,2743.2,2742.8,3.64582]
[1740223699222,0.7699,2743.2,2742.9,0.10546582]
[1740223699994,0.7699,2743.2,2742.7,3.64602]
[1740223700307,0.7699,2743.2,2742.8,0.10546582]
[1740223700706,0.7699,2743.2,2742.7,3.64602]
[1740223700907,0.7699,2743.2,2742.6,4.38588947]
[1740223701109,0.7699,2743.2,2742.8,0.10546582]
[1740223701309,0.7699,2743.2,2742.6,4.38588947]
[1740223701526,0.7699,2743.2,2742.9,0.10546582]
[1740223701838,0.7699,2743.2,2742.6,4.38588947]
[1740223701990,4.41537,2743.2,2743.0,0.10546582]
[1740223702196,4.41537,2743.2,2742.6,3.64605]
[1740223702438,4.41537,2743.2,2742.6,4.912294]
[1740223702798,4.41537,2743.2,2742.7,0.10495482]
[1740223703137,3.64551,2743.1,2742.7,0.10495482]
[1740223703336,4.41537,2743.2,2742.7,0.10495482]
[1740223709451,0.7699,2743.2,2742.8,3.64588]
[1740223710132,0.7699,2743.2,2742.9,0.10495482]
[1740223710834,0.7699,2743.2,2742.7,3.64596]
[1740223711051,0.7699,2743.2,2743.0,0.10495482]
[1740223711210,0.7699,2743.2,2742.7,3.64596]
[1740223711544,0.7699,2743.2,2740.4,1.37078719]
[1740223711545,3.6468,2742.2,2741.6,3.64749]
[1740223711749,4.41854,2742.2,2741.6,3.64749]
[1740223712041,4.41833,2742.4,2741.6,3.64749]
[1740223712240,4.41833,2742.4,2741.7,4.549089]
[1740223712241,3.64658,2742.3,2741.7,4.549089]
[1740223712446,3.64658,2742.3,2741.7,0.901749]
[1740223712643,3.64658,2742.3,2741.7,4.549109]
[1740223712846,3.64658,2742.3,2741.7,0.901749]
[1740223713434,3.64658,2742.3,2741.7,4.549119]
[1740223713640,3.64658,2742.3,2741.7,0.901749]
[1740223713893,3.64658,2742.3,2741.7,4.549119]
[1740223714899,3.6467,2742.2,2741.7,0.901749]
[1740223715103,3.6467,2742.2,2741.5,9.01762]
[1740223715275,3.6467,2742.2,2741.5,12.66517]
[1740223715601,3.6467,2742.2,2741.5,12.6651]
[1740223715801,0.7718,2742.0,2741.5,9.01755]
[1740223716101,0.7718,2742.0,2741.5,12.66508]
[1740223716281,0.7718,2742.0,2741.5,13.931588]
[1740223716485,0.7718,2742.0,2741.5,10.284048]
[1740223717375,3.6467,2742.2,2741.6,3.6475]
[1740223717583,3.6467,2742.2,2741.7,3.64735]
[1740223719117,0.7718,2742.3,2741.8,3.73275732]
[1740223719315,0.7718,2742.3,2741.8,0.08552732]
[1740223719474,4.41837,2742.3,2741.7,3.64735]
[1740223719808,0.7718,2742.3,2741.8,0.08645036]
[1740223720019,4.4184,2742.3,2741.8,0.08645036]
[1740223720315,0.7718,2742.3,2741.9,0.08645036]
[1740223720515,4.41839,2742.3,2741.9,0.08645036]
[1740223720817,0.7718,2742.3,2741.8,3.64714]
[1740223721022,0.7718,2742.3,2742.0,0.08645036]
[1740223721245,1.213626,2742.3,2741.8,3.64714]
[1740223721385,1.213626,2742.3,2742.1,0.08645036]
[1740223721713,1.213626,2742.3,2742.2,0.08645036]
[1740223721911,0.55,2742.2,2741.4,3.64772]
[1740223722110,3.64728,2741.8,2741.3,5.37]
[1740223722338,0.7684,2742.0,2741.5,0.08334879]
[1740223722529,0.7684,2742.0,2741.5,3.64754]
[1740223722825,0.7684,2742.0,2741.6,0.08455407]
[1740223722976,4.41537,2742.0,2741.6,0.08455407]
[1740223723271,4.43167323,2741.9,2741.6,0.08455407]
[1740223723511,0.78457323,2741.9,2741.4,3.64776]
[1740223723683,4.41537,2742.0,2741.5,0.08455407]
[1740223723890,4.41537,2742.0,2741.5,3.73216407]
[1740223724215,4.41537,2742.0,2741.5,0.08455407]
[1740223724917,3.64726,2741.8,2741.5,0.08455407]
[1740223725133,7.29459,2741.8,2741.3,5.37]
[1740223725335,3.64726,2741.8,2741.4,0.08455407]
[1740223727242,4.45353,2741.8,2741.4,0.08455407]
[1740223729439,7.29459,2741.8,2741.4,0.08455407]
[1740223729938,3.64735,2741.8,2741.4,0.08455407]
[1740223730144,0.7684,2742.0,2741.4,0.08455407]
[1740223730732,3.6471,2741.9,2741.4,0.08455407]
[1740223731544,3.64739,2741.7,2741.4,0.08455407]
[1740223732446,3.64724,2741.8,2741.4,0.08455407]
[1740223734471,3.6471,2741.9,2741.4,0.08455407]
[1740223734654,3.64742,2741.7,2741.4,0.08455407]
[1740223735678,3.64751,2741.6,2741.4,0.08455407]
[1740223736167,3.64751,2741.6,2741.1,9.01816]
[1740223736370,3.64751,2741.6,2741.5,0.08535721]
[1740223736529,3.64751,2741.6,2741.1,9.01816]
[1740223736729,3.64738,2741.7,2741.2,0.08535721]
[1740223738774,3.64724,2741.8,2741.2,3.73335721]
[1740223739571,3.64724,2741.8,2741.2,7.38135721]
[1740223740170,3.64718,2741.9,2741.2,3.73335721]
[1740223740366,3.64724,2741.8,2741.3,3.64785]
[1740223740777,3.64724,2741.8,2741.4,0.0853355]
[1740223741161,3.64724,2741.8,2741.2,3.64795]
[1740223741363,3.64724,2741.8,2741.5,0.08530293]
[1740223741578,3.64724,2741.8,2741.2,3.64794]
[1740223741741,3.64724,2741.8,2741.6,0.08530293]
[1740223741940,4.53196742,2741.8,2741.2,3.64794]
[1740223742251,4.53196742,2741.8,2741.3,0.08530293]
[1740223743139,0.88472742,2741.8,2741.3,3.73308293]
[1740223743339,0.78459423,2741.9,2741.3,3.73308293]
[1740223743799,4.43170423,2741.9,2741.3,3.73308293]
[1740223745357,4.43170423,2741.9,2741.3,3.73320293]
[1740223746240,0.78459423,2741.9,2741.3,3.73320293]
[1740223746444,0.7956,2742.3,2741.4,3.64777]
[1740223746642,8.2466,2742.5,2742.0,3.64695]
[1740223746842,8.2466,2742.5,2741.7,3.64736]
[1740223747154,7.451,2742.5,2742.3,3.64654]
[1740223747477,7.451,2742.5,2742.2,3.6466]
[1740223747679,7.451,2742.5,2742.4,0.08510755]
[1740223747878,7.451,2742.5,2742.0,3.64693]
[1740223748191,7.451,2742.5,2741.8,7.29435]
[1740223748192,11.09738,2742.5,2741.8,7.29435]
[1740223748387,12.62971423,2742.5,2742.1,0.08510755]
[1740223748586,12.62971423,2742.5,2741.9,3.64706]
[1740223748800,12.62971423,2742.5,2742.2,0.08510755]
[1740223748938,12.62971423,2742.5,2741.9,3.64706]
[1740223749143,1.26297142,2742.4,2742.0,0.08510755]
[1740223750170,3.64659,2742.3,2741.7,3.64734]
[1740223750492,0.7956,2742.3,2742.1,0.08510755]
[1740223750659,0.7956,2742.3,2741.8,3.64721]
[1740223751189,0.7956,2742.3,2741.9,0.08468432]
[1740223752900,1.26297142,2742.4,2741.9,0.08468432]
[1740223753097,1.26297142,2742.4,2742.0,3.64686]
[1740223753399,7.451,2742.5,2742.1,3.73143432]
[1740223753594,7.451,2742.5,2742.1,0.08468432]
[1740223755799,11.0973,2742.5,2742.1,0.08468432]
[1740223756284,11.0973,2742.5,2741.9,3.64702]
[1740223756584,11.0973,2742.5,2742.2,0.08413086]
[1740223756774,1.10973,2742.4,2741.9,3.64702]
[1740223756978,11.0973,2742.5,2742.3,0.08413086]
[1740223757174,11.0973,2742.5,2741.9,3.64702]
[1740223757378,11.6473,2742.5,2742.4,0.08413086]
[1740223757573,11.6473,2742.5,2741.9,3.64702]
[1740223757819,0.7956,2742.4,2742.0,0.08413086]
[1740223758121,0.50554622,2742.3,2742.0,0.08413086]
[1740223759185,0.72460961,2743.2,2742.1,8.76]
[1740223759417,0.005,2743.4,2742.1,8.76]
[1740223759418,0.005,2743.4,2743.3,3.64524]
[1740223759623,0.005,2743.4,2743.1,3.64538]
[1740223759920,0.005,2743.4,2743.2,3.64536]
[1740223760130,0.005,2743.4,2743.2,3.72914369]
[1740223760294,0.005,2743.4,2743.2,0.08378369]
[1740223760623,3.65013,2743.4,2742.8,3.64588]
[1740223760820,4.459199,2743.4,2743.3,0.08378369]
[1740223761024,4.459199,2743.4,2742.8,3.64588]
[1740223761387,4.459199,2743.4,2742.9,0.08378369]
[1740223761927,0.55,2743.3,2742.9,0.08378369]
[1740223762095,4.39787,2743.2,2742.5,3.64625]
[1740223762495,3.64574,2743.0,2742.6,0.08316549]
[1740223762714,3.64599,2742.8,2742.4,5.37]
[1740223763038,3.64599,2742.8,2742.5,0.08035795]
[1740223763206,3.64573,2743.0,2742.5,0.08035795]
[1740223763400,4.79312123,2743.0,2742.5,0.08035795]
[1740223763608,3.64578,2742.9,2742.5,0.08035795]
[1740223764442,3.64592,2742.8,2742.5,0.08035795]
[1740223765445,4.79312123,2743.0,2742.5,0.08035795]
[1740223765646,3.64572,2743.0,2742.5,0.08035795]
[1740223765944,7.29148,2743.0,2742.5,0.08035795]
[1740223766124,3.64572,2743.0,2742.3,3.64655]
[1740223766359,3.64581,2742.9,2742.6,0.08035795]
[1740223766529,3.64581,2742.9,2742.3,3.64655]
[1740223766731,3.64594,2742.8,2742.2,5.37]
[1740223767330,3.64594,2742.8,2742.3,0.08035795]
[1740223767531,3.64594,2742.8,2742.2,9.01665]
[1740223767736,3.64594,2742.8,2742.3,0.08035795]
[1740223767921,3.64594,2742.8,2742.2,9.01665]
[1740223768449,3.64594,2742.8,2742.3,0.08035795]
[1740223768821,3.64594,2742.8,2742.2,9.01665]
[1740223769028,3.64594,2742.8,2742.4,0.08035795]
[1740223769348,3.64594,2742.8,2742.2,9.01665]
[1740223769845,3.64594,2742.8,2742.3,0.08035795]
[1740223770034,0.729153,2742.9,2742.3,3.72691795]
[1740223770249,4.374933,2742.9,2742.3,3.64656]
[1740223770421,0.729153,2742.9,2742.4,0.08035795]
[1740223770621,0.55,2742.9,2742.4,0.08035795]
[1740223770822,0.55,2742.9,2742.4,3.72678795]
[1740223771243,0.55,2742.9,2742.4,0.08035795]
[1740223772249,0.55,2742.9,2742.4,3.72677795]
[1740223772836,0.55,2742.9,2742.4,3.72670795]
[1740223773958,0.55,2743.0,2742.4,3.72670795]
[1740223774270,1.709346,2743.0,2742.4,3.72670795]
[1740223777174,1.709346,2743.0,2742.4,7.37306795]
[1740223777776,1.709346,2743.0,2742.5,3.64622]
[1740223778128,1.709346,2743.0,2742.6,0.07995653]
[1740223779031,5.355006,2743.0,2742.6,0.07995653]
[1740223779232,1.709346,2743.0,2742.6,0.07995653]
[1740223781049,0.7524,2743.2,2742.8,3.64588]
[1740223781367,0.7524,2743.2,2742.8,3.64582]
[1740223781856,0.7524,2743.2,2742.9,3.72545128]
[1740223782627,0.7524,2743.2,2742.9,0.07976128]
[1740223783463,0.7524,2743.2,2742.9,3.72552128]
[1740223783775,0.7524,2743.2,2742.9,0.07976128]
[1740223784365,7.455,2743.4,2743.3,3.64524]
[1740223784571,7.455,2743.4,2743.3,3.7251748]
[1740223792331,0.005,2743.4,2743.3,3.7251748]
[1740223796040,0.005,2743.4,2743.3,0.0799348]
[1740223796902,0.005,2743.4,2743.1,3.6455]
[1740223797235,0.005,2743.4,2743.0,9.01557]
[1740223797435,0.005,2743.4,2743.2,0.07900947]
[1740223797734,0.005,2743.4,2743.1,3.64548]
[1740223797934,0.005,2743.4,2743.3,0.07900947]
[1740223798543,0.005,2743.4,2743.1,3.64548]
[1740223798699,0.005,2743.4,2743.3,0.07900947]
[1740223798901,0.005,2743.4,2743.1,3.64548]
[1740223799125,0.005,2743.4,2743.3,0.07900947]
[1740223799317,0.005,2743.4,2743.2,3.64529]
[1740223799514,0.005,2743.4,2743.3,0.07900947]
[1740223801039,3.65011,2743.4,2743.3,0.07900947]
[1740223805327,4.20011,2743.4,2743.3,0.07900947]
[1740223805638,5.75783,2743.4,2743.3,0.07900947]
[1740223817672,3.64551,2743.1,2742.5,3.64621]
[1740223817876,3.64551,2743.1,2742.5,7.29243]
[1740223818036,3.64551,2743.1,2742.5,3.64621]
[1740223818737,3.64551,2743.1,2742.6,1.66181836]
[1740223818938,7.29115,2743.1,2742.6,2.7296202]
[1740223819235,3.64551,2743.1,2742.6,2.7296202]
[1740223821575,3.64551,2743.1,2742.6,6.3757102]
[1740223822338,4.19548,2743.2,2742.6,6.3757602]
[1740223822742,4.19548,2743.2,2742.7,0.67410732]
[1740223825087,4.19548,2743.2,2742.7,4.32013732]
[1740223825239,4.19545,2743.2,2742.7,4.32013732]
[1740223826085,4.19545,2743.2,2742.7,0.67410732]
[1740223828158,4.19545,2743.2,2742.7,4.32010732]
[1740223829286,3.64551,2743.1,2742.7,0.67410732]
[1740223829490,4.19545,2743.2,2742.7,0.67410732]
[1740223829982,3.64553,2743.1,2742.7,0.67410732]
[1740223830154,4.19545,2743.2,2742.7,0.67410732]
[1740223830349,4.19545,2743.2,2742.6,3.64615]
[1740223830557,3.64552,2743.1,2742.6,3.64615]
[1740223830883,4.19545,2743.2,2742.6,3.64615]
[1740223831185,4.19545,2743.2,2742.7,0.07097419]
[1740223832684,7.84092,2743.2,2742.7,0.07097419]
[1740223832890,4.19545,2743.2,2742.7,0.07097419]
[1740223834196,7.84094,2743.2,2742.7,0.07097419]
[1740223834367,4.19545,2743.2,2742.7,0.07097419]
[1740223834769,7.8409,2743.2,2742.7,0.07097419]
[1740223835079,4.19545,2743.2,2742.7,0.07097419]
[1740223835488,3.64554,2743.1,2742.7,0.07097419]
[1740223835807,3.64565,2743.0,2742.7,0.07097419]
[1740223836298,3.64552,2743.1,2742.8,0.07097419]
[1740223836590,3.64552,2743.1,2742.6,3.64614]
[1740223836793,3.64552,2743.1,2742.9,0.07097419]
[1740223837097,3.64552,2743.1,2742.4,5.37]
[1740223837098,0.7681,2743.0,2742.4,5.37]
[1740223837297,4.41385,2743.0,2742.7,0.34233669]
[1740223838767,4.41385,2743.0,2742.4,9.01641]
[1740223839806,0.7681,2743.0,2742.5,3.64628]
[1740223840100,0.7681,2743.2,2742.6,1.66181836]
[1740223840300,0.7681,2743.2,2742.8,3.6458]
[1740223840607,0.55,2743.2,2742.8,3.6458]
[1740223840899,0.55,2743.3,2742.9,3.64573]
[1740223841108,3.55,2743.3,2742.8,3.6458]
[1740223843489,0.7731,2743.4,2743.0,3.64562]
[1740223843703,0.005,2743.4,2743.0,3.64557]
[1740223843862,0.005,2743.4,2743.3,3.64524]
[1740223846141,0.005,2743.4,2743.3,3.71664757]
[1740223847038,0.005,2743.4,2743.3,1.73322593]
[1740223847345,7.5539577,2743.7,2743.6,5.30665836]
[1740223847346,0.1049577,2743.7,2743.6,5.30665836]
[1740223847643,0.1049577,2743.7,2743.6,5.37743759]
[1740223847810,0.1049577,2743.7,2743.6,6.27967935]
[1740223849446,0.1049577,2743.7,2743.6,4.61786099]
[1740223851819,0.1049577,2743.7,2743.6,9.98786099]
[1740223855647,0.1049577,2743.7,2743.6,5.44077923]
[1740223857839,0.1049577,2743.7,2743.6,0.07077923]
[1740223858450,0.1049577,2743.7,2743.6,5.37743759]
[1740223859523,0.1049577,2743.7,2743.6,3.71561923]
[1740223861357,0.1049577,2743.7,2743.6,0.07077923]
[1740223862203,0.1049577,2743.7,2743.6,3.71561923]
[1740223862405,0.1049577,2743.7,2743.6,4.45166915]
[1740223867668,3.64343,2744.7,2743.6,4.45166915]
[1740223867669,8.96149,2746.2,2745.5,3.6422]
[1740223867896,8.96149,2746.2,2743.6,15.99223408]
[1740223867897,0.27389231,2746.3,2745.6,3.7090639]
[1740223868175,0.7819,2746.2,2745.6,0.0669339]
[1740223868343,0.442316,2746.1,2745.6,0.0669339]
[1740223868678,3.0,2746.0,2745.7,0.05808458]
[1740223869172,3.0,2746.0,2745.4,3.64242]
[1740223869373,0.7083846,2745.9,2745.8,0.05605745]
[1740223869573,0.7083846,2745.9,2745.5,3.64231]
[1740223869768,0.7083846,2745.9,2745.8,0.05605745]
[1740223869973,0.7083846,2745.9,2745.6,3.64218]
[1740223870143,0.442316,2746.1,2745.8,0.05605745]
[1740223870342,0.442316,2746.1,2745.4,3.64241]
[1740223870538,0.442316,2746.1,2745.9,0.05605745]
[1740223870741,3.442316,2746.1,2745.4,3.64235]
[1740223870947,4.083846,2746.1,2745.4,3.64235]
[1740223871126,0.4865746,2746.0,2745.5,0.05605745]
[1740223871597,3.64194,2745.8,2745.5,0.05605745]
[1740223871941,3.64194,2745.8,2745.2,3.6427]
[1740223872137,4.1282346,2746.0,2745.6,0.05605745]
[1740223872466,4.1282346,2746.0,2745.7,0.05605745]
[1740223872667,0.41282346,2745.9,2745.7,0.05605745]
[1740223872973,0.41282346,2745.9,2745.8,0.05605745]
[1740223873271,0.41282346,2745.9,2745.4,3.64242]
[1740223873473,0.41282346,2745.9,2745.8,0.05605745]
[1740223873657,0.41282346,2745.9,2745.4,3.64242]
[1740223873858,0.41282346,2745.9,2745.5,0.05605745]
[1740223876441,3.64196,2745.8,2745.5,0.05605745]
[1740223876783,0.40547835,2745.7,2745.2,9.01268]
[1740223877082,3.64196,2745.8,2745.2,9.01268]
[1740223877250,3.64196,2745.8,2745.3,0.05605745]
[1740223877782,0.41282346,2745.9,2745.3,0.05605745]
[1740223877783,4.43459,2745.6,2745.3,0.05605745]
[1740223878079,7.98485,2745.4,2745.3,0.05605745]
[1740223878481,4.3424,2745.3,2744.0,0.267]
[1740223878780,4.43618,2744.5,2744.0,0.267]
[1740223878986,4.43618,2744.5,2744.1,0.04818615]
[1740223879178,0.7924,2744.5,2744.1,0.04818615]
[1740223879536,3.64344,2744.7,2744.1,3.69227615]
[1740223879940,3.64344,2744.7,2744.1,0.04818615]
[1740223880486,4.43644,2744.2,2744.1,0.04818615]
[1740223880684,4.98644,2744.2,2744.1,0.04818615]
[1740223880883,0.55,2744.1,2743.2,9.01537]
[1740223881196,3.64441,2744.0,2743.2,9.01537]
[1740223881340,3.64441,2744.0,2743.3,0.04228623]
[1740223881541,3.64441,2744.0,2743.3,4.22874485]
[1740223881854,4.19419,2744.1,2743.4,3.64511]
[1740223882278,4.19419,2744.1,2743.5,0.04228623]
[1740223882486,3.64444,2744.0,2743.5,0.04228623]
[1740223882862,3.64444,2744.0,2743.3,4.18646862]
[1740223883066,3.64444,2744.0,2743.4,0.04228623]
[1740223883704,0.55,2744.1,2743.4,0.84296677]
[1740223884000,4.19419,2744.1,2743.5,3.64497]
[1740223884201,3.64432,2744.0,2743.4,0.84296677]
[1740223884407,3.64432,2744.0,2743.4,0.80068054]
[1740223884608,3.64432,2744.0,2743.5,0.04228623]
[1740223885273,3.64458,2743.8,2743.5,0.04228623]
[1740223885472,3.64458,2743.8,2743.2,5.37]
[1740223885716,3.64458,2743.8,2743.3,0.04228623]
[1740223887113,3.64475,2743.7,2743.3,0.04228623]
[1740223887611,3.64458,2743.8,2743.3,0.04228623]
[1740223887814,3.64486,2743.6,2743.3,0.04228623]
[1740223888019,3.64511,2743.4,2743.3,0.04228623]
[1740223888369,3.64511,2743.4,2742.8,3.64581]
[1740223888621,3.64511,2743.4,2743.3,0.04228623]
[1740223888775,3.64511,2743.4,2742.8,3.64581]
[1740223888970,3.64511,2743.4,2743.3,0.77613201]
[1740223889181,3.64533,2743.3,2742.7,3.64602]
[1740223889387,3.64511,2743.4,2742.7,3.64602]
[1740223889589,3.64538,2743.2,2742.7,3.64602]
[1740223889783,3.64538,2743.2,2742.6,5.37]
[1740223890070,3.64538,2743.2,2742.6,9.01616]
[1740223891319,3.64538,2743.2,2742.7,0.04228623]
[1740223892105,3.64538,2743.2,2742.7,3.68831623]
[1740223892305,3.64511,2743.4,2742.7,3.68831623]
[1740223892518,0.8249,2743.6,2742.8,3.42540493]
[1740223892822,0.8249,2743.6,2743.2,3.6453]
[1740223893194,3.0,2743.9,2743.4,3.645]
[1740223893795,3.0,2743.9,2743.5,0.04628686]
[1740223894509,3.0,2743.9,2743.4,3.64506]
[1740223894722,3.0,2743.9,2743.6,0.04628686]
[1740223894929,3.0,2743.9,2743.4,3.64506]
[1740223895223,4.46925,2744.0,2743.7,0.04628686]
[1740223895518,3.746925,2743.9,2743.8,0.04628686]
[1740223895928,3.746925,2743.9,2743.4,3.64506]
[1740223896125,3.0,2743.9,2743.8,0.04628686]
[1740223896282,3.0,2743.9,2743.4,3.64506]
[1740223896482,3.0,2743.9,2743.5,0.04628686]
[1740223896683,6.64446,2743.9,2743.5,0.04628686]
[1740223897219,3.0,2743.9,2743.5,0.04628686]
[1740223897584,6.64445,2743.9,2743.5,0.04628686]
[1740223898325,4.46889,2744.3,2743.7,3.64463]
[1740223898492,3.64427,2744.1,2743.5,9.01493]
[1740223898695,3.64427,2744.1,2743.6,3.6907408]
[1740223899108,0.8249,2744.3,2743.7,3.64464]
[1740223899312,3.0,2744.5,2743.7,0.90605708]
[1740223899514,0.8249,2744.6,2744.0,3.64431]
[1740223899717,0.8249,2744.6,2744.2,3.64404]
[1740223900333,0.8249,2744.6,2744.3,0.04562875]
[1740223900700,0.8249,2744.6,2744.2,3.64404]
[1740223900897,4.46841,2744.6,2744.4,0.04562875]
[1740223901089,3.64368,2744.5,2743.8,12.65897]
[1740223901286,3.64368,2744.5,2743.9,0.0447765]
[1740223901506,0.8249,2744.6,2744.1,3.64413]
[1740223901767,0.8249,2744.6,2744.0,3.6442]
[1740223902126,0.8249,2744.6,2744.1,3.6889165]
[1740223903274,0.8249,2744.6,2744.1,4.12476858]
[1740223903627,4.46842,2744.6,2744.1,0.48062858]
[1740223903828,4.46842,2744.6,2744.1,0.0447765]
[1740223904056,7.28778,2744.4,2743.8,5.37]
[1740223904322,3.64389,2744.4,2743.9,0.0447765]
[1740223904763,0.8249,2744.6,2743.9,0.0447765]
[1740223905071,3.64385,2744.4,2743.9,0.0447765]
[1740223907947,3.64393,2744.3,2743.9,0.0447765]
[1740223908891,4.41601,2744.0,2743.9,0.0447765]
[1740223909558,4.41601,2744.0,2742.7,5.37]
[1740223909559,0.7717,2743.7,2742.7,5.37]
[1740223909761,3.64534,2743.3,2742.7,5.37]
[1740223910165,3.64534,2743.3,2742.5,9.01629]
[1740223910461,3.64534,2743.3,2742.6,3.64616]
[1740223910649,7.29071,2743.3,2742.6,3.64616]
[1740223910850,3.64539,2743.2,2742.5,9.01629]
[1740223911276,0.7717,2743.5,2742.5,5.37]
[1740223911277,3.64553,2743.1,2742.5,5.37]
[1740223911476,3.64571,2743.0,2742.5,5.37]
[1740223913850,3.64542,2743.2,2742.6,3.64615]
[1740223914650,3.64551,2743.1,2742.5,8.79540493]
[1740223916106,3.6457,2743.0,2742.5,8.79540493]
[1740223916256,4.41757,2742.9,2742.5,8.79540493]
[1740223916595,4.41757,2742.9,2742.5,5.37]
[1740223916835,3.64592,2742.8,2742.0,3.64691]
[1740223916999,3.64607,2742.7,2742.0,3.64691]
[1740223917328,3.64592,2742.8,2742.1,3.64681]
[1740223917925,3.64592,2742.8,2742.2,3.64666]
[1740223918127,4.4184,2742.3,2741.9,5.37]
[1740223918430,4.4184,2742.3,2741.5,7.03754]
[1740223918431,4.4184,2742.3,2741.7,3.64733]
[1740223919023,8.0651,2742.3,2741.7,3.64733]
[1740223919330,4.4184,2742.3,2741.7,3.64733]
[1740223919700,3.64707,2742.0,2741.3,9.01785]
[1740223920103,3.64707,2742.0,2741.3,12.66566]
[1740223920286,3.64684,2742.1,2741.3,9.01781]
[1740223920633,3.64684,2742.1,2741.5,3.64763]
[1740223920814,3.55,2742.2,2741.5,3.64754]
[1740223920991,3.55,2742.2,2741.6,3.64745]
[1740223921327,3.55,2742.2,2741.6,3.68939331]
[1740223921511,0.7717,2742.3,2742.0,3.64687]
[1740223921888,0.7717,2742.3,2742.2,3.6467]
[1740223922112,1.3357,2742.6,2742.2,3.68864331]
[1740223922385,8.96592,2742.8,2742.4,3.6464]
[1740223922386,5.32,2742.8,2742.4,3.6464]
[1740223922731,3.55,2742.7,2742.3,3.64649]
[1740223922934,3.55,2742.7,2742.5,0.04194331]
[1740223923086,3.55,2742.7,2742.2,3.64661]
[1740223923426,3.55,2742.7,2742.3,0.04194331]
[1740223923791,3.55,2742.7,2742.2,3.64661]
[1740223924128,5.305799,2742.7,2742.0,3.64694]
[1740223924336,0.7857,2742.6,2742.3,0.04194331]
[1740223924556,4.43188,2742.6,2742.0,3.64694]
[1740223924836,4.43188,2742.6,2742.4,0.04194331]
[1740223925001,4.43188,2742.6,2742.0,3.64694]
[1740223925200,0.7857,2742.6,2742.1,3.64681]
[1740223925399,0.7857,2742.6,2742.1,3.68875331]
[1740223928334,4.43187,2742.6,2742.1,0.04194331]
[1740223928721,4.43187,2742.6,2741.9,3.6471]
[1740223928920,4.43187,2742.6,2742.2,0.04194331]
[1740223929115,1.162803,2742.5,2741.9,3.6471]
[1740223929345,0.55,2742.4,2742.3,0.04194331]
[1740223929536,3.64663,2742.3,2741.7,9.0173]
[1740223929922,3.64692,2742.1,2741.8,0.04194331]
[1740223930338,3.64692,2742.1,2741.7,5.37]
[1740223930644,3.64692,2742.1,2741.9,0.04275268]
[1740223930948,3.64692,2742.1,2742.0,0.04275268]
[1740223931304,3.64692,2742.1,2741.7,5.37]
[1740223931504,1.3008,2742.4,2741.8,0.04275268]
[1740223931505,3.6471,2741.9,2741.8,0.04275268]
[1740223931758,3.6471,2741.9,2741.7,5.37]
[1740223931759,0.7508,2741.9,2741.7,5.37]
[1740223931970,0.7508,2741.9,2741.8,0.04286064]
[1740223932122,7.837767,2741.9,2741.8,0.04286064]
[1740223932328,3.64725,2741.8,2741.1,3.64807]
[1740223932668,0.7508,2741.5,2740.9,9.01834]
[1740223933170,0.7508,2741.5,2741.0,0.04171856]
[1740223933354,4.39852,2741.5,2741.0,0.04171856]
[1740223934464,0.7508,2741.5,2741.0,0.04171856]
[1740223935882,3.64779,2741.4,2741.0,0.04171856]
[1740223936045,3.7508,2741.5,2741.0,0.04171856]
[1740223936366,7.39854,2741.5,2741.0,0.04171856]
[1740223936670,7.39854,2741.5,2740.7,3.64857]
[1740223936671,3.64779,2741.4,2740.7,3.64857]
[1740223936836,3.64779,2741.4,2741.1,0.04171856]
[1740223937037,3.64779,2741.4,2740.7,7.29719]
[1740223937239,7.29567,2741.4,2741.2,0.04171856]
[1740223937578,4.8628963,2741.4,2741.3,0.04171856]
[1740223937946,4.8628963,2741.4,2740.7,3.64857]
[1740223938328,4.8628963,2741.4,2740.8,0.04171856]
[1740223938629,3.64779,2741.4,2740.8,3.69025856]
[1740223938843,7.39843,2741.5,2740.8,3.69025856]
[1740223939666,0.7508,2741.5,2740.9,3.64833]
[1740223940417,0.7508,2741.5,2741.0,0.04171856]
[1740223944423,3.0,2741.8,2741.4,3.64777]
[1740223944424,3.8109,2741.8,2741.4,3.64777]
[1740223944593,0.55,2741.7,2741.4,3.64777]
[1740223944796,0.55,2741.7,2741.5,0.04228013]
[1740223945194,0.55,2741.7,2741.2,3.64798]
[1740223945428,0.55,2741.7,2741.6,0.04296048]
[1740223945575,0.55,2741.7,2741.2,3.64798]
[1740223946123,0.55,2741.7,2741.3,0.04296048]
[1740223947521,3.8109,2741.8,2741.3,0.04296048]
[1740223947722,3.8109,2741.8,2741.5,3.64756]
[1740223948234,3.8109,2741.8,2741.6,0.04274447]
[1740223948387,3.8109,2741.8,2741.4,3.64764]
[1740223948587,3.8109,2741.8,2741.2,3.64796]